bitfinex-derivatives/quotes_ETHF0:USTF0_20251229
["timestamp","ask_amount","ask_price","bid_price","bid_amount"]
[1767018275791,6.644,2924.8,2923.9,7.94857]
[1767018276090,0.17119,2924.1,2923.7,0.00513286]
[1767018276686,0.17119,2924.1,2923.9,8.07143]
[1767018276889,0.17119,2924.1,2923.9,7.68154]
[1767018277186,0.17119,2924.1,2924.0,7.37838]
[1767018277393,0.17123,2923.4,2922.5,4.27834679]
[1767018277591,0.17123,2923.4,2922.6,5.085]
[1767018277790,0.17123,2923.4,2922.9,8.9931]
[1767018277996,0.17122,2923.6,2923.0,8.7947]
[1767018278494,0.18028625,2923.6,2923.0,8.80407297]
[1767018279398,6.67,2924.1,2923.0,8.80407297]
[1767018279699,6.67,2924.3,2923.5,10.0991]
[1767018279885,0.17121,2923.8,2923.5,10.0991]
[1767018280089,6.671,2924.4,2923.5,10.0991]
[1767018280383,0.17121,2923.8,2923.5,10.0991]
[1767018282399,0.00513286,2924.2,2923.5,10.0991]
[1767018283000,0.00439561,2924.4,2923.5,10.0991]
[1767018283499,0.17117,2924.4,2923.5,15.2111]
[1767018283694,1.22219574,2925.9,2923.5,15.2111]
[1767018283891,6.21186823,2925.8,2923.9,9.4297]
[1767018284093,40.8,2925.8,2924.7,9.0696]
[1767018284291,0.27175126,2926.3,2924.7,9.0696]
[1767018284492,7.65814217,2926.2,2924.8,6.8755]
[1767018284698,0.98214217,2926.1,2925.1,8.5712]
[1767018284901,0.17112,2925.3,2925.1,9.44e-06]
[1767018285103,0.17113,2925.2,2925.1,9.44e-06]
[1767018287294,0.00340061,2925.4,2925.1,9.44e-06]
[1767018288391,0.17113,2925.2,2925.1,9.44e-06]
[1767018290610,0.00340061,2925.4,2925.1,9.44e-06]
[1767018291405,0.17113,2925.2,2925.1,9.44e-06]
[1767018292911,0.00340061,2925.4,2925.1,9.44e-06]
[1767018293415,0.17113,2925.2,2925.1,9.44e-06]
[1767018293614,0.00340061,2925.4,2925.1,9.44e-06]
[1767018294002,40.8,2926.0,2925.1,9.44e-06]
[1767018294402,47.541,2926.0,2925.1,9.44e-06]
[1767018294598,40.8,2926.0,2925.1,9.44e-06]
[1767018294804,0.00353993,2926.3,2925.1,9.44e-06]
[1767018296410,0.1711,2925.7,2925.1,9.44e-06]
[1767018296812,0.1711,2925.6,2925.1,9.44e-06]
[1767018298415,0.17111,2925.5,2925.1,9.44e-06]
[1767018299816,0.00353993,2926.3,2925.1,9.44e-06]
[1767018300318,0.1711,2925.8,2925.5,11.08883]
[1767018300519,0.00353993,2926.3,2925.5,11.08883]
[1767018300819,6.782,2927.0,2926.0,1.36111387]
[1767018301009,6.782,2927.0,2926.2,2.86e-06]
[1767018301210,1.36111387,2926.8,2926.2,2.86e-06]
[1767018301417,0.17107,2926.1,2925.3,1.36111387]
[1767018301814,0.17461505,2926.1,2925.3,1.36111387]
[1767018302117,0.17461505,2926.1,2925.6,15.826]
[1767018302513,0.17974791,2926.1,2925.6,15.83113286]
[1767018304017,6.331,2927.9,2926.0,1.36111387]
[1767018304219,1.36111387,2927.6,2926.0,1.36111387]
[1767018304416,7.77710401,2927.8,2926.8,14.89977]
[1767018304417,6.802,2927.8,2926.8,14.89977]
[1767018304626,0.17102,2927.1,2926.8,14.16221]
[1767018304822,0.17103,2926.9,2926.7,7.96678]
[1767018305020,1.36111387,2927.3,2926.9,1.01178817]
[1767018305319,1.36447744,2927.3,2926.7,3.75141]
[1767018305514,1.36447744,2927.3,2926.4,5.6631]
[1767018305826,1.36447744,2927.3,2927.0,4.73556]
[1767018306027,0.17103,2926.9,2926.6,5.62183]
[1767018306321,0.17103,2926.9,2925.8,1.36111387]
[1767018306322,1.36447744,2927.3,2926.7,5.50887]
[1767018306518,0.00336357,2927.3,2926.7,4.9298]
[1767018306722,0.17104,2926.7,2926.6,5.86509]
[1767018306930,0.17104,2926.6,2925.7,5.121]
[1767018307332,0.17104,2926.6,2926.1,5.198]
[1767018308024,0.17105,2926.5,2926.1,5.198]
[1767018310424,0.17106,2926.4,2926.1,5.198]
[1767018310812,6.825,2927.2,2926.1,5.198]
[1767018311029,0.17106,2926.3,2926.1,4.45883]
[1767018311323,0.17106,2926.3,2926.2,11.2367]
[1767018311627,0.17106,2926.3,2926.2,10.0088]
[1767018312015,0.17106,2926.3,2926.2,9.14831]
[1767018312216,0.17106,2926.3,2926.2,8.33006]
[1767018312725,0.17106,2926.3,2926.2,1.27041253]
[1767018312914,6.825,2927.2,2926.2,1.27041253]
[1767018312915,6.825,2927.2,2926.2,0.90736253]
[1767018313117,6.825,2927.2,2926.2,0.47393253]
[1767018313316,0.17106,2926.4,2925.6,0.00513286]
[1767018313712,6.831,2927.1,2925.6,0.00513286]
[1767018313916,4e-05,2926.7,2926.0,5.1695]
[1767018314129,0.17104,2926.7,2926.0,10.3005]
[1767018314327,0.00336357,2927.3,2926.0,10.3005]
[1767018315126,0.17102,2927.0,2926.0,10.3005]
[1767018315326,0.17102,2927.0,2926.6,6.7591]
[1767018315527,0.00336357,2927.3,2926.5,7.2431]
[1767018315725,0.00336357,2927.3,2926.0,5.131]
[1767018315915,0.00336357,2927.3,2926.8,5.06235]
[1767018316120,0.00336357,2927.3,2926.4,5.6967]
[1767018316319,0.00336357,2927.3,2926.8,4.49024]
[1767018316519,0.17102,2927.0,2926.8,4.1158]
[1767018316724,0.00336357,2927.3,2927.0,5.01241]
[1767018316928,0.00336357,2927.3,2926.0,5.131]
[1767018316929,40.8,2927.7,2926.9,5.3875]
[1767018317130,40.8,2927.7,2926.8,5.9277]
[1767018317329,0.17102,2927.1,2926.8,5.9277]
[1767018317532,40.8,2927.7,2927.2,5.23988]
[1767018317830,40.80347791,2927.7,2927.2,0.00914755]
[1767018318031,0.17102,2927.1,2926.9,4.98407755]
[1767018318225,0.17102,2927.1,2927.0,4.97687]
[1767018318419,0.17102,2927.1,2927.0,4.48837]
[1767018318627,40.80347791,2927.7,2926.8,5.43842]
[1767018318827,40.80347791,2927.7,2927.0,5.18057]
[1767018319029,0.00509409,2927.6,2927.1,0.0051239]
[1767018319223,0.17101,2927.1,2926.9,5.27981048]
[1767018319424,0.17101,2927.1,2927.0,5.4634]
[1767018319631,0.17101,2927.1,2927.0,5.04053]
[1767018319934,0.17101,2927.1,2927.0,4.16792]
[1767018320235,0.00509409,2927.6,2926.8,5.7551239]
[1767018320534,0.00509409,2927.6,2927.0,0.00260153]
[1767018321127,0.17103,2926.9,2926.8,4.85597543]
[1767018321425,0.17103,2926.9,2926.3,5.136]
[1767018321626,0.00509409,2927.6,2926.8,13.62084]
[1767018321828,0.00509409,2927.6,2926.8,12.80925]
[1767018322031,0.17102,2927.0,2926.8,8.36e-06]
[1767018322431,0.00509409,2927.6,2926.8,8.36e-06]
[1767018322629,0.00509409,2927.6,2926.9,13.99097]
[1767018322930,0.00509409,2927.6,2926.9,12.89823]
[1767018323133,0.00509409,2927.6,2926.8,8.36e-06]
[1767018323431,0.00509409,2927.6,2927.2,15.49267]
[1767018323631,0.17102,2927.1,2926.8,8.36e-06]
[1767018323833,0.17102,2927.1,2926.8,11.82640836]
[1767018324130,0.00509409,2927.6,2926.8,11.82640836]
[1767018324732,0.17102,2927.1,2926.8,11.82640836]
[1767018324931,0.00509409,2927.6,2926.8,11.82640836]
[1767018325531,0.00509409,2927.6,2926.8,8.36e-06]
[1767018325833,0.17099,2927.5,2927.4,13.2084739]
[1767018326031,0.17102,2927.1,2926.8,8.36e-06]
[1767018326632,0.00509409,2927.6,2926.9,12.60272]
[1767018328133,0.00509409,2927.6,2926.9,13.96287439]
[1767018328325,0.00347791,2927.7,2926.9,13.96287439]
[1767018329230,0.0051239,2927.6,2926.9,13.96287439]
[1767018330535,0.0051239,2927.6,2926.9,12.60272]
[1767018330934,0.0051239,2927.6,2926.8,5.16200836]
[1767018331131,0.1761139,2927.6,2927.2,7.9092]
[1767018331338,0.0051239,2927.6,2927.2,5.50907]
[1767018331532,0.17101,2927.2,2926.8,8.36e-06]
[1767018332133,1.35973485,2927.5,2926.6,3.9e-06]
[1767018332334,0.98013371,2927.4,2926.6,3.9e-06]
[1767018332532,0.98013371,2927.3,2926.6,3.9e-06]
[1767018332733,0.98013371,2927.2,2926.5,1.8084139]
[1767018332933,0.17105,2926.6,2926.1,5.168]
[1767018333134,0.17105,2926.6,2926.1,5.17216246]
[1767018333733,0.17105,2926.6,2926.1,5.17728636]
[1767018334137,6.9531239,2927.6,2926.1,5.17728636]
[1767018334338,0.98019146,2927.5,2926.1,5.17728636]
[1767018334538,0.98019146,2927.4,2926.1,5.17728636]
[1767018334730,0.17104,2926.6,2926.1,5.17728636]
[1767018334926,6.9531239,2927.6,2926.1,0.00928636]
[1767018335131,0.98018399,2927.5,2926.1,0.00928636]
[1767018335338,0.17104,2926.6,2926.1,0.00928636]
[1767018335539,6.9601239,2927.6,2926.1,0.00928636]
[1767018335739,0.98022369,2927.5,2926.1,0.00928636]
[1767018336038,0.98022369,2927.4,2926.1,0.00928636]
[1767018336236,6.9601239,2927.6,2926.1,0.00928636]
[1767018336237,0.17104,2926.7,2926.1,0.00928636]
[1767018336437,0.17104,2926.6,2926.1,0.00928636]
[1767018336938,6.9601239,2927.6,2926.1,0.00928636]
[1767018337132,0.98027296,2927.5,2926.7,0.03734]
[1767018337443,0.17103,2926.8,2926.1,0.00928636]
[1767018337733,0.0051239,2927.6,2926.1,0.00928636]
[1767018340540,0.17102,2927.0,2926.1,0.00928636]
[1767018342038,0.17104,2926.8,2926.1,0.00928636]
[1767018342237,0.0051239,2927.6,2926.2,5.164]
[1767018342438,0.17104,2926.8,2926.2,5.164]
[1767018346238,0.0051239,2927.6,2926.2,5.164]
[1767018347740,0.171,2927.3,2926.2,5.164]
[1767018348140,0.0051239,2927.6,2926.2,5.164]
[1767018348943,0.171,2927.3,2926.2,5.164]
[1767018353846,0.0051239,2927.6,2926.2,5.164]
[1767018354242,0.00347791,2927.7,2926.2,5.164]
[1767018355244,0.0051239,2927.2,2926.2,5.164]
[1767018355547,0.0051239,2927.2,2926.3,5.165]
[1767018356154,41.57184857,2928.3,2926.3,5.165]
[1767018356346,0.17097,2927.9,2926.3,5.165]
[1767018357150,0.17097,2927.8,2926.3,5.165]
[1767018358252,0.17097,2927.8,2926.4,5.165]
[1767018360852,0.00239412,2927.9,2926.4,5.165]
[1767018361754,0.77184857,2928.3,2926.4,5.165]
[1767018362565,0.77184857,2928.3,2926.9,1.35927733]
[1767018362848,0.77558644,2928.3,2926.9,1.35927733]
[1767018363449,0.17098,2927.8,2926.9,1.35927733]
[1767018365152,0.17098,2927.8,2926.5,1.35927733]
[1767018365549,0.17098,2927.8,2926.6,5.161]
[1767018365852,0.77558644,2928.3,2926.9,1.35927733]
[1767018366252,0.17098,2927.8,2926.9,1.35927733]
[1767018366453,0.77558644,2928.3,2926.6,5.161]
[1767018367556,0.17098,2927.8,2926.6,5.161]
[1767018368558,0.77558644,2928.3,2926.6,5.161]
[1767018369454,0.17098,2927.8,2926.6,5.161]
[1767018370160,0.77558644,2928.3,2926.6,5.161]
[1767018370457,0.17098,2927.8,2926.6,5.161]
[1767018370757,0.77558644,2928.3,2926.6,5.161]
[1767018371256,0.17094,2928.4,2926.8,0.17103]
[1767018371450,0.17091,2928.9,2926.8,0.17103]
[1767018371651,0.17091,2928.8,2927.6,0.0051239]
[1767018371846,0.17093,2928.6,2927.6,0.0051239]
[1767018372051,0.17468761,2928.6,2927.6,0.0051239]
[1767018372357,0.17094,2928.4,2927.6,0.0051239]
[1767018374061,0.17095,2928.3,2927.6,0.0051239]
[1767018377962,0.00375761,2928.6,2927.6,2.39e-05]
[1767018378955,0.00510001,2928.4,2927.6,2.39e-05]
[1767018379557,0.17096,2928.1,2927.6,2.39e-05]
[1767018379759,0.17096,2928.1,2926.9,4.099]
[1767018380768,0.17096,2928.1,2927.2,0.0051239]
[1767018388577,0.00510001,2928.4,2927.3,1.35891305]
[1767018388775,0.17096,2928.1,2927.3,1.35891305]
[1767018388977,0.00510001,2928.4,2927.3,1.35891305]
[1767018389273,0.17096,2928.1,2927.3,1.35891305]
[1767018389684,0.00510001,2928.4,2927.3,1.35891305]
[1767018390377,0.17096,2928.1,2927.3,1.35891305]
[1767018390577,0.00510001,2928.4,2927.3,1.35891305]
[1767018391586,0.17096,2928.1,2927.3,1.35891305]
[1767018392482,0.17096,2928.1,2927.5,1.35914119]
[1767018396587,0.17096,2928.1,2927.3,1.35914119]
[1767018398883,0.17096,2928.0,2927.2,0.0051239]
[1767018400289,0.17097,2927.9,2927.2,0.0051239]
[1767018405391,0.17098,2927.7,2926.6,1.35914119]
[1767018405694,0.17098,2927.7,2926.8,5.159]
[1767018405888,1.35914119,2928.3,2926.7,1.35914119]
[1767018405889,0.17099,2927.6,2926.7,1.35914119]
[1767018406087,0.17099,2927.5,2926.6,5.159]
[1767018406284,0.17099,2927.5,2926.5,1.35914119]
[1767018406489,0.17099,2927.5,2926.7,0.0051239]
[1767018407290,0.17099,2927.5,2926.8,1.35914119]
[1767018409497,0.171,2927.4,2926.7,0.0051239]
[1767018411699,0.171,2927.4,2926.8,1.35914119]
[1767018412101,0.171,2927.4,2926.7,0.0051239]
[1767018412302,0.171,2927.3,2926.7,0.0051239]
[1767018412502,0.171,2927.3,2926.4,6.51614119]
[1767018413500,0.171,2927.3,2926.6,0.0051239]
[1767018416910,1.35914119,2927.9,2926.6,0.0051239]
[1767018417107,0.17101,2927.2,2926.3,5.158]
[1767018418106,0.17101,2927.2,2926.5,0.0051239]
[1767018418406,0.17102,2927.1,2926.5,0.0051239]
[1767018418607,0.17102,2927.1,2926.3,5.158]
[1767018419203,0.17103,2926.9,2926.1,0.00416246]
[1767018419406,0.17103,2926.9,2926.1,5.16216246]
[1767018419609,0.0051239,2926.8,2926.2,0.0051239]
[1767018421403,0.0051239,2926.8,2925.5,1.35914119]
[1767018421711,0.17106,2926.3,2925.5,5.158]
[1767018422010,0.17106,2926.3,2925.6,1.35914119]
[1767018422412,0.17473453,2926.3,2925.7,0.00341601]
[1767018423502,0.0051239,2926.8,2926.2,1.35914119]
[1767018423705,1.35914119,2927.9,2926.5,1.35914119]
[1767018423903,0.17101,2927.3,2926.5,1.35914119]
[1767018424594,0.17469414,2927.3,2926.5,1.35914119]
[1767018424800,0.0051239,2927.2,2926.5,1.35914119]
[1767018425201,0.1761339,2927.2,2926.5,1.35914119]
[1767018425608,0.1761339,2927.2,2926.2,1.35914119]
[1767018425813,0.1761339,2927.2,2926.3,5.159]
[1767018430714,0.17101,2927.1,2926.3,5.159]
[1767018434416,0.17101,2927.1,2926.5,1.35914119]
[1767018435514,0.17099,2927.5,2926.8,1.35914119]
[1767018436612,0.0051239,2927.4,2926.8,1.35914119]
[1767018437511,0.17427579,2927.5,2926.8,1.35914119]
[1767018437822,0.17097,2927.9,2927.1,1.35914119]
[1767018438118,0.17097,2927.9,2927.4,1.35914119]
[1767018438512,0.0051239,2927.9,2927.4,1.36426509]
[1767018438709,0.00842062,2927.9,2927.4,1.36426509]
[1767018439216,40.8,2928.7,2927.4,1.36426509]
[1767018440220,0.0051239,2928.3,2927.4,1.36426509]
[1767018440428,0.17095,2928.2,2927.4,1.36426509]
[1767018440624,0.17095,2928.2,2927.7,1.35914119]
[1767018440925,0.0028295,2928.7,2927.7,1.36347639]
[1767018441826,0.0051239,2928.5,2927.7,1.36347639]
[1767018442420,0.17095,2928.2,2927.7,1.36347639]
[1767018442921,0.0028295,2928.7,2928.0,1.35914119]
[1767018443626,0.0028295,2928.7,2927.7,1.36347639]
[1767018444422,0.17095,2928.2,2927.7,0.0043352]
[1767018446327,0.17095,2928.2,2927.7,1.36347639]
[1767018448329,0.17095,2928.2,2927.7,0.0043352]
[1767018455736,0.0028295,2928.7,2927.7,0.0043352]
[1767018457429,0.17095,2928.2,2927.7,0.0043352]
[1767018460242,0.17096,2928.1,2927.7,3.52e-05]
[1767018460543,0.17096,2928.1,2927.4,0.0051239]
[1767018461540,0.17096,2928.1,2927.4,0.0078766]
[1767018463140,0.17096,2928.1,2926.8,5.15]
[1767018464038,0.0051239,2927.7,2927.2,0.0051239]
[1767018464936,42.08164273,2929.2,2927.2,0.0051239]
[1767018464937,1.22219574,2930.9,2927.6,2.88904946]
[1767018465140,0.17086,2929.7,2928.7,1.35903473]
[1767018465841,0.00316353,2929.7,2928.9,0.0051239]
[1767018466033,0.00316353,2929.7,2928.9,0.00869658]
[1767018467534,0.23025354,2930.3,2928.9,0.00869658]
[1767018467835,0.17083,2930.3,2929.1,1.35903473]
[1767018468534,0.17369913,2930.3,2929.1,1.35903473]
[1767018469345,0.17084,2930.2,2928.9,0.00869658]
[1767018472038,7.027,2930.1,2928.9,0.00869658]
[1767018472439,0.17084,2930.2,2928.9,0.00869658]
[1767018473433,7.03286913,2930.3,2928.9,0.00869658]
[1767018474349,7.027,2930.2,2928.9,0.00869658]
[1767018474646,0.17085,2929.9,2928.9,0.00869658]
[1767018479137,8.37803473,2932.2,2929.5,1.35903473]
[1767018479337,1.35903473,2931.8,2929.5,1.35903473]
[1767018479545,40.83,2931.5,2929.5,1.35903473]
[1767018480042,40.83430767,2931.5,2929.5,1.35903473]
[1767018480242,0.03430767,2931.5,2929.9,1.35903473]
[1767018480646,0.03430767,2931.5,2930.4,0.0051239]
[1767018481052,0.76207667,2933.1,2930.7,1.35903473]
[1767018481245,0.76207667,2933.1,2931.1,1.35903473]
[1767018481445,0.76207667,2933.1,2931.5,1.35903473]
[1767018481638,2.1211114,2933.1,2930.5,1.35903473]
[1767018481842,0.17071,2932.4,2930.6,4.708]
[1767018482041,0.17401665,2932.4,2930.6,4.71120621]
[1767018482243,0.17401665,2932.4,2930.9,1.35903473]
[1767018482444,0.17401665,2932.4,2930.7,5.139]
[1767018482649,0.17401665,2932.4,2930.6,0.00320621]
[1767018482848,0.0051239,2931.8,2931.3,0.0051239]
[1767018484554,0.17401665,2932.4,2931.3,0.0051239]
[1767018486850,0.00330665,2932.4,2930.6,0.00320621]
[1767018487057,0.17073,2932.0,2930.6,0.00320621]
[1767018487851,0.0051239,2931.6,2931.0,0.0051239]
[1767018488353,0.0051239,2931.6,2930.6,0.00320621]
[1767018489449,0.0051239,2931.6,2930.8,0.0051239]
[1767018495156,0.1758739,2931.6,2930.8,0.0051239]
[1767018499959,0.17076,2931.4,2930.6,0.00320621]
[1767018500664,0.17077,2931.3,2930.6,0.00320621]
[1767018501165,0.17077,2931.3,2930.7,0.0051239]
[1767018503061,0.17078,2931.2,2930.6,0.00320621]
[1767018503260,0.17078,2931.2,2929.5,0.9746079]
[1767018503261,0.17078,2931.2,2929.9,1.244]
[1767018504062,0.17078,2931.2,2930.3,0.0051239]
[1767018504258,0.17078,2931.2,2930.3,0.00829074]
[1767018506365,0.0051239,2931.6,2930.3,0.00829074]
[1767018506666,0.97808502,2931.5,2930.3,0.00829074]
[1767018506865,0.0051239,2931.6,2930.3,0.00829074]
[1767018507064,0.97831333,2931.5,2930.3,0.00829074]
[1767018507265,0.97916679,2931.4,2930.3,0.00829074]
[1767018507467,0.17079,2931.0,2930.3,0.00829074]
[1767018508860,0.3405,2930.9,2930.3,0.00829074]
[1767018509061,0.17079,2931.0,2930.3,0.00829074]
[1767018512372,0.17072,2932.2,2930.4,4.40282265]
[1767018512672,0.17072,2932.2,2930.5,1.95166524]
[1767018513058,0.17072,2932.2,2930.6,4.5269095]
[1767018513458,0.0051239,2931.7,2930.6,4.5269095]
[1767018514866,0.0051239,2931.7,2930.7,5.123]
[1767018515766,0.0102478,2931.7,2930.3,0.00829074]
[1767018515964,0.0051239,2931.7,2930.4,2.116]
[1767018516165,0.0051239,2931.7,2930.4,6.52704508]
[1767018523069,0.0102478,2931.7,2930.3,0.00829074]
[1767018523579,0.0102478,2931.7,2930.3,5.12929074]
[1767018524072,0.0102478,2931.7,2930.3,5.30012074]
[1767018524475,0.0102478,2931.7,2930.8,1.3558436]
[1767018524980,0.0102478,2931.7,2930.7,1.3558436]
[1767018525279,0.0102478,2931.7,2930.6,1.3558436]
[1767018526271,0.0102478,2931.7,2930.3,5.12929074]
[1767018526472,0.0102478,2931.7,2930.9,1.3558436]
[1767018526667,0.0102478,2931.7,2930.6,1.3558436]
[1767018529776,0.76207667,2933.1,2931.6,1.3558436]
[1767018529976,2.11792027,2933.1,2931.4,0.97811818]
[1767018530173,0.76207667,2933.1,2931.5,5.118]
[1767018530483,0.93273667,2933.1,2931.5,5.118]
[1767018530680,0.0051239,2932.6,2932.0,0.0051239]
[1767018532674,0.9369338,2933.1,2932.0,0.0051239]
[1767018533681,0.00509421,2932.8,2932.0,0.0051239]
[1767018534676,0.7662738,2933.1,2932.0,0.0051239]
[1767018539085,0.7662738,2933.1,2932.2,1.95158646]
[1767018539387,0.17062,2933.8,2932.0,0.0051239]
[1767018540182,0.1747807,2933.8,2932.0,0.0051239]
[1767018540786,0.17063,2933.7,2932.0,0.0051239]
[1767018541488,0.17064,2933.6,2932.0,0.0051239]
[1767018543192,0.0041607,2933.8,2932.0,0.0051239]
[1767018543193,0.17065,2933.4,2932.0,0.0051239]
[1767018544189,0.17065,2933.3,2932.0,0.0051239]
[1767018550695,0.17065,2933.3,2932.2,1.35487625]
[1767018551203,0.17065,2933.3,2932.0,0.0051239]
[1767018551394,0.17065,2933.3,2932.1,1.35487625]
[1767018553094,0.17065,2933.3,2932.0,0.0051239]
[1767018553296,0.17065,2933.3,2932.0,1.36000015]
[1767018556104,0.0041607,2933.8,2933.2,1.35487625]
[1767018556404,0.0041607,2933.8,2933.2,0.00301973]
[1767018557197,0.0041607,2933.8,2932.1,1.94974124]
[1767018557497,0.0041607,2933.8,2932.2,4.35551071]
[1767018558203,0.0041607,2933.8,2932.2,4.35918857]
[1767018558706,0.0041607,2933.8,2932.2,0.00367786]
[1767018560804,0.1747907,2933.8,2932.2,0.00367786]
[1767018561004,0.1747907,2933.8,2932.2,5.10667786]
[1767018563308,0.17063,2933.7,2932.2,5.10667786]
[1767018564402,0.17063,2933.7,2932.2,0.00367786]
[1767018565106,0.0041607,2933.8,2932.2,0.00367786]
[1767018566509,0.17064,2933.5,2932.2,0.00367786]
[1767018567605,0.0041607,2933.8,2932.2,0.00367786]
[1767018567806,0.0041607,2933.8,2932.4,1.94974124]
[1767018568307,0.0041607,2933.8,2932.3,4.47256166]
[1767018568308,0.0041607,2933.8,2932.2,0.00367786]
[1767018568508,0.0041607,2933.8,2932.3,5.1]
[1767018570306,0.0041607,2933.8,2932.3,6.27272445]
[1767018570498,40.8,2934.7,2932.9,1.94974124]
[1767018570707,0.17057,2934.8,2933.5,0.00511499]
[1767018571005,0.17056,2934.9,2933.5,0.00511499]
[1767018571205,0.17058,2934.6,2933.5,0.00511499]
[1767018571610,0.17343488,2934.6,2933.5,0.00511499]
[1767018572903,0.00285488,2934.6,2933.5,0.00511499]
[1767018581825,0.17343488,2934.6,2933.5,0.00511499]
[1767018584624,0.0593181,2935.7,2933.5,0.00511499]
[1767018584625,1.35307472,2937.1,2934.5,1.35307472]
[1767018584824,3.417,2937.8,2934.0,1.35307472]
[1767018584825,0.1705,2936.0,2935.5,4.99e-06]
[1767018585029,0.1705,2936.0,2934.2,5.096]
[1767018585320,0.1705,2935.9,2934.1,1.35307472]
[1767018585627,0.00274663,2935.9,2934.1,0.00343125]
[1767018585929,0.00511498,2935.3,2934.1,0.00343125]
[1767018587029,0.17565498,2935.3,2934.1,0.00343125]
[1767018587217,0.17054,2935.2,2934.1,0.00343125]
[1767018588030,0.17054,2935.2,2934.4,0.00511499]
[1767018588526,0.17054,2935.2,2934.1,0.00343125]
[1767018589524,0.17054,2935.2,2934.4,0.00511499]
[1767018589924,0.00511498,2935.3,2932.9,0.17068]
[1767018589925,0.17055,2935.1,2932.9,0.17068]
[1767018590123,0.17055,2935.1,2933.0,1.794]
[1767018590324,0.17055,2935.1,2933.0,6.14668792]
[1767018590930,0.17055,2935.1,2933.8,0.00511499]
[1767018596038,0.17056,2935.0,2933.8,0.00511499]
[1767018596437,0.00511498,2935.3,2933.8,0.00511499]
[1767018596637,0.17057,2934.8,2933.8,0.00511499]
[1767018600439,0.00511498,2935.3,2933.0,0.00370739]
[1767018600740,2.20791752,2934.7,2931.6,13.9513574]
[1767018600940,40.8,2934.1,2930.9,1.37657689]
[1767018601243,3.15544089,2934.0,2931.0,5.088]
[1767018601439,0.00511499,2932.8,2930.9,4.37008397]
[1767018601643,0.00511499,2932.8,2930.1,5.26184]
[1767018601837,0.00782171,2932.8,2930.2,4.37008397]
[1767018602142,0.17071,2932.4,2930.1,5.26531243]
[1767018602340,0.17071,2932.4,2930.2,4.64675895]
[1767018602639,0.00782171,2932.8,2930.1,5.09447243]
[1767018602832,2.20791752,2932.4,2930.1,0.00347243]
[1767018603037,4.4597294,2932.3,2930.1,0.00347243]
[1767018603234,0.17074,2931.9,2930.1,0.00347243]
[1767018603441,0.00511499,2931.3,2930.1,0.00347243]
[1767018604443,0.17588499,2931.3,2929.6,0.76207667]
[1767018604941,0.17078,2931.2,2929.6,0.76207667]
[1767018605141,0.17078,2931.1,2929.6,0.76207667]
[1767018605343,0.17081,2930.7,2928.0,23.876]
[1767018605547,0.17081,2930.6,2928.1,5.093]
[1767018605736,0.00511499,2929.6,2928.1,9.61366327]
[1767018605932,0.00511499,2929.6,2928.1,4.52066327]
[1767018606438,0.00511499,2929.6,2928.1,4.52308544]
[1767018607033,40.8,2929.5,2928.1,4.52308544]
[1767018609548,40.8,2929.5,2928.1,0.00242217]
[1767018610049,0.00511499,2929.6,2928.2,4.41979482]
[1767018610454,40.8,2930.4,2928.2,4.41979482]
[1767018611157,0.00370793,2930.7,2928.5,2.20791752]
[1767018611346,0.00511499,2929.9,2929.3,0.00511498]
[1767018611547,40.8,2931.7,2929.3,0.00511498]
[1767018611752,40.8,2931.7,2929.4,4.38230835]
[1767018612748,40.80413753,2931.7,2929.5,5.094]
[1767018613240,40.80413753,2931.7,2929.6,4.4874623]
[1767018613440,40.80413753,2931.7,2929.6,8.07198486]
[1767018613641,40.80413753,2931.7,2929.8,0.17086]
[1767018613842,0.17069,2932.7,2929.6,10.27990238]
[1767018614154,0.17069,2932.7,2929.9,8.18664604]
[1767018614452,0.76207667,2933.1,2929.7,5.095]
[1767018614453,40.8,2932.5,2929.7,8.18664604]
[1767018614646,0.00511499,2931.4,2929.4,5.097]
[1767018614848,0.0078577,2931.4,2929.4,5.097]
[1767018615157,0.0078577,2931.4,2929.4,4.47905067]
[1767018615349,0.0078577,2931.4,2929.3,1.17318932]
[1767018615750,0.17079,2931.1,2929.3,1.17318932]
[1767018615949,0.0078577,2931.4,2929.3,1.17318932]
[1767018616447,0.0078577,2931.4,2929.4,4.38201768]
[1767018616850,0.0078577,2931.4,2930.1,0.00511499]
[1767018617957,0.1786177,2931.4,2930.1,0.00511499]
[1767018619859,40.8,2931.3,2930.1,0.00511499]
[1767018620056,0.0078577,2931.4,2930.1,0.00511499]
[1767018623356,40.8,2932.1,2930.2,4.41280798]
[1767018624062,0.93274667,2933.1,2930.2,4.41280798]
[1767018624255,0.17067,2933.0,2930.2,4.41280798]
[1767018624458,0.1741084,2933.0,2930.3,3.56644051]
[1767018624661,0.17068,2932.9,2930.4,5.093]
[1767018624861,0.17068,2932.9,2930.4,9.4836546]
[1767018625565,0.00511499,2931.9,2930.4,5.093]
[1767018626163,0.0034384,2933.0,2930.7,0.1708]
[1767018626564,0.0034384,2933.0,2930.8,4.43137352]
[1767018626768,0.97550852,2932.9,2930.8,4.43137352]
[1767018626966,1.22219574,2932.5,2930.2,0.00354082]
[1767018627156,0.00511499,2931.6,2931.1,1.499e-05]
[1767018627366,0.00511499,2931.6,2930.2,0.00354082]
[1767018628264,0.00511499,2931.6,2930.6,0.00511499]
[1767018628763,0.17068,2932.8,2930.6,0.00511499]
[1767018628962,0.97873225,2932.7,2930.6,0.00511499]
[1767018629161,0.97873225,2932.6,2930.6,0.00511499]
[1767018629365,0.97873225,2932.5,2930.6,0.00511499]
[1767018629566,0.17071,2932.3,2930.6,0.00511499]
[1767018629770,0.00511499,2931.7,2930.6,0.00511499]
[1767018630665,0.98104794,2931.6,2930.2,0.00354082]
[1767018630861,1.22219574,2931.6,2930.2,0.00354082]
[1767018631063,2.20324368,2931.5,2929.5,5.092]
[1767018631262,0.17077,2931.3,2929.5,5.092]
[1767018631466,0.98104794,2931.2,2929.5,5.092]
[1767018631972,0.98104794,2931.2,2930.1,0.00511499]
[1767018632171,0.98104794,2931.2,2930.1,0.00759579]
[1767018633066,1.15182794,2931.2,2928.6,0.17093]
[1767018633271,0.98104794,2931.1,2929.0,0.1709]
[1767018633670,0.98104794,2931.1,2929.1,4.4773703]
[1767018633861,0.98104794,2931.1,2928.7,5.09]
[1767018634263,0.00511499,2930.2,2929.6,0.00511499]
[1767018634469,0.17078,2931.2,2929.6,0.00511499]
[1767018634665,0.98200254,2931.1,2929.6,0.00511499]